bitfinex/quotes_BTCUSD_20220101
["timestamp","ask_amount","ask_price","bid_price","bid_amount"]
[1641015686719,0.208221,47427.0,47426.0,0.29713765]
[1641015686919,0.258221,47427.0,47426.0,0.00010955]
[1641015687421,0.258221,47427.0,47418.0,0.418]
[1641015687422,0.225821,47427.0,47418.0,0.41157955]
[1641015687621,0.225821,47427.0,47415.0,0.58238244]
[1641015687622,0.208221,47427.0,47415.0,0.58238244]
[1641015687822,0.208221,47427.0,47422.0,7.303e-05]
[1641015688025,0.052734,47423.0,47422.0,7.303e-05]
[1641015688226,0.052734,47423.0,47422.0,0.38435529]
[1641015690026,0.052734,47423.0,47421.0,9.128e-05]
[1641015692296,0.31014807,47423.0,47421.0,9.128e-05]
[1641015692492,0.052734,47423.0,47421.0,0.00015512]
[1641015692692,1.36610167,47422.0,47421.0,0.00015512]
[1641015692892,1.58462067,47422.0,47421.0,0.00015512]
[1641015693092,0.52462067,47422.0,47421.0,0.00015512]
[1641015694296,0.05,47422.0,47421.0,0.00015512]
[1641015694494,0.25728037,47422.0,47421.0,0.00015512]
[1641015694794,1.41729218,47422.0,47421.0,0.00015512]
[1641015694996,1.63581118,47422.0,47421.0,0.00015512]
[1641015695195,0.52581118,47422.0,47421.0,0.00015512]
[1641015696230,0.268519,47422.0,47421.0,0.00015512]
[1641015696634,1.4185319,47422.0,47421.0,0.00015512]
[1641015696834,1.6370509,47422.0,47421.0,0.00015512]
[1641015697031,0.5270509,47422.0,47421.0,0.00015512]
[1641015697231,0.9970509,47422.0,47421.0,0.00015512]
[1641015697431,1.0970509,47422.0,47421.0,0.00015512]
[1641015697633,1.09826566,47422.0,47421.0,3.512e-05]
[1641015697833,1.09826566,47422.0,47419.0,0.00461033]
[1641015697834,0.62826566,47422.0,47419.0,0.00461033]
[1641015698033,1.328519,47420.0,47419.0,0.00461033]
[1641015698333,1.328519,47420.0,47415.0,0.01003494]
[1641015698334,0.998519,47420.0,47415.0,0.01003494]
[1641015698534,1.16972955,47416.0,47415.0,4.94e-06]
[1641015698736,1.27408293,47416.0,47415.0,4.94e-06]
[1641015699038,1.27408293,47416.0,47401.0,0.001]
[1641015699039,0.052767,47403.0,47401.0,0.001]
[1641015699490,1.6084898,47402.0,47401.0,0.001]
[1641015699691,0.21973416,47401.0,47400.0,0.00456876]
[1641015699890,1.5697807,47401.0,47400.0,0.00456876]
[1641015700090,1.5697807,47401.0,47391.0,0.001]
[1641015700091,0.00127994,47392.0,47391.0,0.001]
[1641015700290,0.10684131,47392.0,47391.0,0.001]
[1641015700490,0.54527528,47392.0,47391.0,0.00120084]
[1641015700691,1.11,47391.0,47384.0,7.2e-05]
[1641015700890,0.00127205,47385.0,47384.0,7.2e-05]
[1641015701089,0.21979105,47385.0,47384.0,7.2e-05]
[1641015701498,0.32258305,47385.0,47384.0,7.2e-05]
[1641015701688,0.00126937,47382.0,47373.0,0.0012914]
[1641015701992,0.21978837,47382.0,47381.0,0.00118258]
[1641015702187,0.58458028,47382.0,47381.0,0.00118258]
[1641015702387,1.11,47381.0,47374.0,0.00031038]
[1641015702591,0.00120632,47376.0,47374.0,0.00031038]
[1641015702787,0.105596,47379.0,47372.0,0.4379]
[1641015702788,0.105596,47379.0,47372.0,0.43450178]
[1641015703045,0.5928,47396.0,47374.0,0.1]
[1641015703241,7.303e-05,47378.0,47374.0,0.1]
[1641015703444,0.00038341,47395.0,47373.0,0.0052097]
[1641015703643,0.052782,47385.0,47377.0,0.30410719]
[1641015703842,0.052782,47385.0,47377.0,0.26115079]
[1641015704049,0.052782,47385.0,47362.0,1.592]
[1641015704050,0.28141921,47384.0,47362.0,0.418]
[1641015704244,0.00121025,47379.0,47357.0,1.5600865]
[1641015704444,0.00121025,47379.0,47363.0,0.00020084]
[1641015704445,0.33763408,47371.0,47363.0,0.00020084]
[1641015704647,0.05,47371.0,47363.0,0.00020084]
[1641015704843,0.05,47371.0,47358.0,0.55354834]
[1641015704844,0.155606,47371.0,47358.0,0.55354834]
[1641015705045,0.28271062,47370.0,47355.0,0.262037]
[1641015705244,0.28283842,47370.0,47359.0,7.303e-05]
[1641015705443,0.00010955,47369.0,47359.0,7.303e-05]
[1641015705842,9.129e-05,47368.0,47359.0,7.303e-05]
[1641015706345,0.052803,47364.0,47359.0,7.303e-05]
[1641015706786,0.052803,47364.0,47354.0,0.00016432]
[1641015707183,0.052803,47364.0,47353.0,0.22577616]
[1641015707379,0.05281,47358.0,47353.0,0.22077616]
[1641015707585,0.00016432,47363.0,47354.0,0.337381]
[1641015707780,0.00121421,47366.0,47353.0,0.21577616]
[1641015707781,0.00020084,47365.0,47353.0,0.21577616]
[1641015707982,0.00014606,47362.0,47353.0,0.21577616]
[1641015708181,0.00018258,47364.0,47353.0,0.20077616]
[1641015708380,0.0001278,47361.0,47353.0,0.20077616]
[1641015708582,0.05297032,47363.0,47357.0,0.91575599]
[1641015708782,0.00010955,47360.0,47357.0,0.91575599]
[1641015708982,0.00014606,47362.0,47357.0,0.91575599]
[1641015709181,9.129e-05,47359.0,47355.0,0.91991089]
[1641015709381,0.0001278,47361.0,47355.0,0.91991089]
[1641015709582,0.34921497,47368.0,47361.0,0.31087167]
[1641015709785,0.052803,47366.0,47358.0,1.20017691]
[1641015709983,0.44599769,47359.0,47356.0,2.1159329]
[1641015710385,7.303e-05,47358.0,47355.0,0.0041549]
[1641015710637,7.303e-05,47358.0,47354.0,0.90491089]
[1641015711035,7.303e-05,47358.0,47356.0,0.33018837]
[1641015712037,7.303e-05,47358.0,47357.0,1.82020568]
[1641015712440,7.303e-05,47358.0,47357.0,1.71520568]
[1641015712637,7.303e-05,47358.0,47357.0,0.337381]
[1641015712837,7.303e-05,47358.0,47357.0,1.047381]
[1641015713037,7.303e-05,47358.0,47357.0,1.31280206]
[1641015713236,7.303e-05,47358.0,47357.0,2.01769294]
[1641015713441,7.303e-05,47358.0,47357.0,1.68031194]
[1641015713839,7.303e-05,47358.0,47353.0,0.27230205]
[1641015714302,7.303e-05,47358.0,47353.0,0.52108258]
[1641015715299,7.303e-05,47358.0,47353.0,0.27230205]
[1641015715702,7.303e-05,47358.0,47350.0,0.0003]
[1641015715703,0.052812,47356.0,47350.0,0.0003]
[1641015715904,0.25892632,47355.0,47350.0,0.0003]
[1641015716103,0.25892632,47355.0,47351.0,0.001]
[1641015716301,0.00129701,47356.0,47351.0,0.001]
[1641015716703,0.26232574,47356.0,47351.0,0.001]
[1641015716904,0.42979981,47355.0,47351.0,0.001]
[1641015717103,0.052821,47353.0,47351.0,0.001]
[1641015717506,0.35718195,47353.0,47351.0,0.001]
[1641015717708,0.218519,47352.0,47351.0,0.001]
[1641015718252,0.26974237,47352.0,47351.0,0.001]
[1641015718452,0.66035805,47352.0,47351.0,0.001]
[1641015718652,0.76035805,47352.0,47351.0,0.001]
[1641015719062,1.42414303,47351.0,47350.0,0.0003]
[1641015719253,1.64390386,47351.0,47350.0,0.0003]
[1641015719453,1.74390386,47351.0,47350.0,0.00037303]
[1641015719654,0.63390386,47351.0,47350.0,0.00037303]
[1641015719854,0.63390386,47351.0,47350.0,0.0003]
[1641015720258,0.92190374,47351.0,47350.0,0.0003]
[1641015720454,0.60776071,47351.0,47350.0,0.0003]
[1641015721054,0.60776071,47351.0,47342.0,0.0002191]
[1641015721055,0.00124136,47343.0,47342.0,0.0002191]
[1641015721456,0.27384114,47343.0,47336.0,0.00034111]
[1641015721656,0.27384114,47343.0,47328.0,0.00958729]
[1641015721914,0.37957024,47342.0,47337.0,9.128e-05]
[1641015722316,0.105671,47341.0,47337.0,9.128e-05]
[1641015722514,1.43263145,47338.0,47337.0,9.128e-05]
[1641015722717,1.37978945,47338.0,47327.0,0.00027386]
[1641015722916,1.16127045,47338.0,47327.0,0.00027386]
[1641015723314,1.16127045,47338.0,47331.0,0.27828669]
[1641015723315,0.4058193,47333.0,47331.0,0.27828669]
[1641015723715,0.4058193,47333.0,47332.0,0.00018257]
[1641015724315,0.4058193,47333.0,47332.0,0.000248]
[1641015724517,0.4058193,47333.0,47326.0,0.41456241]
[1641015724518,0.40707631,47333.0,47326.0,0.41456241]
[1641015724716,0.052845,47330.0,47326.0,0.41456241]
[1641015724919,0.00120162,47327.0,47325.0,0.00053475]
[1641015725322,0.00120162,47327.0,47326.0,0.00010955]
[1641015725738,0.10690062,47327.0,47326.0,0.00010955]
[1641015726138,0.15690062,47327.0,47326.0,0.00010955]
[1641015726539,0.10690062,47327.0,47326.0,0.00010955]
[1641015727439,0.15690062,47327.0,47326.0,0.00010955]
[1641015727837,0.15690062,47327.0,47321.0,0.00446651]
[1641015728040,0.052846,47325.0,47321.0,0.00446651]
[1641015729138,0.28617728,47336.0,47321.0,0.00772268]
[1641015729388,0.05,47332.0,47321.0,0.00772268]
[1641015729589,0.28617728,47336.0,47321.0,0.00772268]
[1641015729590,0.2564632,47331.0,47321.0,0.00772268]
[1641015729790,0.4219772,47329.0,47321.0,0.00772268]
[1641015729989,0.00136203,47330.0,47321.0,0.00772268]
[1641015730392,0.052844,47326.0,47321.0,0.00772268]
[1641015730793,0.052844,47326.0,47321.0,0.00425617]
[1641015731894,0.052844,47326.0,47314.0,0.80375446]
[1641015731895,0.052844,47326.0,47314.0,0.41695617]
[1641015732094,0.052844,47326.0,47311.0,2.0392]
[1641015732095,0.00126725,47324.0,47311.0,0.001]
[1641015732292,0.052859,47320.0,47315.0,0.00020084]
[1641015732492,0.31785236,47319.0,47315.0,0.00020084]
[1641015732694,0.218519,47318.0,47315.0,0.00020084]
[1641015732890,0.105717,47321.0,47317.0,0.24229745]
[1641015733346,0.512855,47319.0,47318.0,0.00014606]
[1641015733545,1.00511287,47319.0,47318.0,0.00014606]
[1641015733745,0.21975017,47319.0,47312.0,0.00025561]
[1641015733943,0.105714,47317.0,47312.0,0.00025561]
[1641015734544,0.052855,47316.0,47312.0,0.00025561]
[1641015735144,0.052855,47316.0,47313.0,1.19630837]
[1641015735145,0.00129639,47314.0,47313.0,1.19630837]
[1641015735342,0.00129639,47314.0,47313.0,1.13276837]
[1641015735544,0.00129639,47314.0,47313.0,1.13300572]
[1641015735545,1.19026639,47314.0,47313.0,1.13300572]
[1641015735744,0.08026639,47314.0,47313.0,0.71003072]
[1641015735948,0.13026639,47314.0,47313.0,0.71003072]
[1641015736144,0.28887739,47314.0,47313.0,0.71003072]
[1641015736343,0.63528381,47314.0,47313.0,0.28705072]
[1641015736547,0.73528381,47314.0,47313.0,0.28705072]
[1641015736789,0.73528381,47314.0,47312.0,0.41839935]
[1641015736993,0.05413934,47313.0,47312.0,0.41839935]
[1641015737391,0.05413934,47313.0,47311.0,0.001]
[1641015737589,0.05413934,47313.0,47311.0,0.72194313]
[1641015737590,0.10701048,47313.0,47311.0,0.72194313]
[1641015737990,0.10701048,47313.0,47311.0,0.29893313]
[1641015738190,0.218519,47312.0,47311.0,0.29893313]
[1641015738389,0.052876,47309.0,47302.0,0.96114535]
[1641015738594,0.40848064,47303.0,47302.0,0.96114535]
[1641015738791,0.45848064,47303.0,47302.0,0.96114535]
[1641015738991,0.05,47303.0,47301.0,0.96114535]
[1641015739392,0.00127046,47306.0,47300.0,1.234775]
[1641015739592,0.052875,47303.0,47300.0,1.229775]
[1641015739792,0.052875,47303.0,47301.0,0.0002191]
[1641015741441,1.328519,47302.0,47301.0,0.0002191]
[1641015741642,1.378519,47302.0,47301.0,0.0002191]
[1641015741842,0.268519,47302.0,47301.0,0.0002191]
[1641015742243,0.5420606,47302.0,47301.0,0.0002191]
[1641015742443,0.3235416,47302.0,47301.0,0.0002191]
[1641015742643,0.3235416,47302.0,47291.0,0.00040168]
[1641015742844,0.3235416,47302.0,47288.0,0.41811]
[1641015742845,0.36640013,47295.0,47288.0,0.41811]
[1641015743047,0.36640013,47295.0,47288.0,0.00011]
[1641015743048,0.00126981,47292.0,47288.0,0.00011]
[1641015743847,0.05415781,47292.0,47288.0,0.00011]
[1641015744047,0.04915781,47292.0,47288.0,0.00396075]
[1641015746703,0.04915781,47292.0,47288.0,0.96545732]
[1641015747103,0.04915781,47292.0,47290.0,0.96149657]
[1641015747304,0.04915781,47292.0,47288.0,0.96545732]
[1641015748336,0.36904211,47291.0,47288.0,0.96545732]
[1641015748538,0.00123852,47290.0,47288.0,0.00396075]
[1641015748935,0.26827244,47290.0,47288.0,0.00396075]
[1641015749136,0.00123852,47290.0,47288.0,0.00396075]
[1641015749336,0.00123852,47290.0,47289.0,0.84140088]
[1641015750036,0.00123852,47290.0,47288.0,0.00396075]
[1641015750337,1.3787147,47289.0,47288.0,0.00396075]
[1641015750535,1.7472337,47289.0,47288.0,0.00396075]
[1641015750737,0.5372337,47289.0,47288.0,0.00396075]
[1641015750936,0.80609058,47289.0,47288.0,0.00011]
[1641015751137,0.5372337,47289.0,47288.0,0.00011]
[1641015751336,0.8112351,47289.0,47288.0,0.00011]
[1641015751536,0.90955087,47289.0,47288.0,0.00011]
[1641015752093,0.90955087,47289.0,47287.0,0.00302846]
[1641015752394,0.218519,47288.0,47287.0,0.00302846]
[1641015752595,0.528519,47288.0,47277.0,0.84093959]
[1641015752794,1.11,47287.0,47277.0,0.84093959]
[1641015752994,0.26985899,47286.0,47279.0,0.60107638]
[1641015753196,0.38732043,47281.0,47279.0,0.60107638]
[1641015753396,0.38732043,47281.0,47280.0,0.00020083]
[1641015753597,0.70732043,47281.0,47280.0,0.00020083]
[1641015753797,0.38732043,47281.0,47280.0,0.00020083]
[1641015753998,0.38732043,47281.0,47278.0,0.00023735]
[1641015753999,0.052906,47280.0,47278.0,0.00023735]
[1641015754900,0.052906,47280.0,47277.0,0.00025561]
[1641015755200,0.105815,47279.0,47277.0,0.00025561]
[1641015755401,1.11,47277.0,47275.0,0.60121099]
[1641015755649,1.32977247,47276.0,47275.0,0.60121099]
[1641015755847,1.42977247,47276.0,47275.0,0.60121099]
[1641015756049,1.52977247,47276.0,47273.0,0.72142176]
[1641015756248,1.32980056,47274.0,47268.0,0.00011]
[1641015756447,0.218519,47273.0,47268.0,0.00011]
[1641015756646,0.218519,47271.0,47268.0,0.00011]
[1641015756847,0.45194183,47272.0,47268.0,0.00011]
[1641015757050,0.1,47272.0,47270.0,0.0002378]
[1641015757250,0.158767,47272.0,47270.0,0.0002378]
[1641015757447,0.052923,47274.0,47270.0,0.0002378]
[1641015757448,0.10581,47278.0,47270.0,0.0002378]
[1641015757649,0.88212718,47283.0,47270.0,0.0002378]
[1641015757848,0.32790891,47281.0,47270.0,0.0002378]
[1641015758048,0.218519,47280.0,47270.0,0.0002378]
[1641015758447,0.213519,47280.0,47270.0,0.0002378]
[1641015758649,0.05290749,47280.0,47270.0,0.0002378]
[1641015759053,0.10290749,47280.0,47270.0,0.0002378]
[1641015759292,0.42857489,47280.0,47270.0,0.00295837]
[1641015759595,0.42857489,47280.0,47269.0,0.00011]
[1641015759596,0.0012406,47272.0,47269.0,0.00011]
[1641015759793,0.1,47277.0,47269.0,0.00011]
[1641015759993,0.00016432,47279.0,47269.0,0.00011]
[1641015760195,0.05010955,47276.0,47269.0,0.00011]
[1641015760393,0.30774612,47277.0,47269.0,0.00011]
[1641015760593,0.105838,47272.0,47269.0,0.00011]
[1641015760992,0.205838,47272.0,47269.0,0.00011]
[1641015761797,0.205838,47272.0,47265.0,0.19544]
[1641015761995,0.052915,47269.0,47265.0,0.19544]
[1641015762198,0.052915,47269.0,47266.0,7.303e-05]
[1641015763040,0.052915,47269.0,47266.0,0.34135227]
[1641015763833,0.052915,47269.0,47266.0,7.303e-05]
[1641015764537,0.00010955,47276.0,47267.0,1.278898]
[1641015764738,0.00010955,47276.0,47267.0,0.07735]
[1641015765037,9.129e-05,47275.0,47267.0,0.07735]
[1641015765235,9.129e-05,47275.0,47274.0,0.69892155]
[1641015765434,0.052901,47276.0,47274.0,0.69892155]
[1641015765835,0.052901,47276.0,47274.0,0.4045472]
[1641015766035,0.052901,47276.0,47274.0,0.3945472]
[1641015766886,0.052901,47276.0,47275.0,0.25863409]
[1641015767088,0.052901,47276.0,47275.0,0.2586981]
[1641015767289,0.05301055,47276.0,47275.0,0.25876211]
[1641015767886,0.05301055,47276.0,47275.0,0.85996019]
[1641015768496,0.00010955,47276.0,47275.0,1.13320261]
[1641015769087,0.00010955,47276.0,47275.0,1.13326103]
[1641015769287,0.00010955,47276.0,47275.0,0.85996019]
[1641015769489,0.00010955,47276.0,47275.0,1.1328167]
[1641015769791,0.00010955,47276.0,47275.0,0.53161862]
[1641015769990,0.0342873,47287.0,47281.0,0.105801]
[1641015770191,0.0342873,47287.0,47282.0,0.338898]
[1641015770550,0.0342873,47287.0,47281.0,0.105801]
[1641015770741,0.0871763,47287.0,47281.0,0.105801]
[1641015770945,0.07032702,47287.0,47281.0,0.105801]
[1641015771545,0.05,47286.0,47281.0,0.105801]
[1641015771746,0.37922791,47284.0,47281.0,0.105801]
[1641015771945,0.052896,47284.0,47281.0,0.105801]
[1641015772144,0.252896,47284.0,47281.0,0.105801]
[1641015773143,0.152896,47284.0,47281.0,0.105801]
[1641015774144,0.0012236,47282.0,47281.0,0.105801]
[1641015774404,0.00133314,47282.0,47281.0,0.105801]
[1641015774604,1.11133314,47282.0,47281.0,0.105801]
[1641015774802,0.53788106,47282.0,47281.0,0.105801]
[1641015775006,0.68788106,47282.0,47281.0,0.105801]
[1641015775204,0.41461714,47282.0,47281.0,0.105801]
[1641015775408,0.68147675,47282.0,47281.0,0.105801]
[1641015775707,0.41461714,47282.0,47281.0,0.105801]
[1641015775905,0.41461714,47282.0,47281.0,0.10229571]
[1641015776704,0.6673911,47282.0,47281.0,0.10229571]
[1641015776905,0.41339354,47282.0,47281.0,0.10229571]
[1641015778054,0.72310465,47282.0,47281.0,0.10229571]
[1641015778446,0.41339354,47282.0,47281.0,0.10229571]
[1641015779651,0.41339354,47282.0,47281.0,0.37562716]
[1641015779652,0.21339354,47282.0,47281.0,0.37562716]
[1641015779851,0.21339354,47282.0,47281.0,0.66418239]
[1641015779852,0.00010954,47282.0,47281.0,0.66418239]
[1641015780052,0.00010954,47282.0,47281.0,0.71452516]
[1641015780454,0.00010954,47282.0,47281.0,0.37562716]
[1641015781553,0.00010954,47282.0,47281.0,0.66580977]
[1641015782000,0.00010954,47282.0,47281.0,0.37562716]
[1641015783402,0.00010954,47282.0,47281.0,0.65557377]
[1641015784104,0.00010954,47282.0,47281.0,0.66757469]
[1641015784302,0.00010954,47282.0,47281.0,0.37562716]
[1641015785306,0.00010954,47282.0,47281.0,0.37651542]
[1641015785548,0.00010954,47282.0,47281.0,0.37562716]
[1641015785743,0.00010954,47282.0,47281.0,0.65740214]
[1641015786143,0.00010954,47282.0,47281.0,0.37562716]
[1641015786745,0.00010954,47282.0,47281.0,0.66030097]
[1641015787047,0.00010954,47282.0,47281.0,0.37562716]
[1641015787446,0.04800054,47284.0,47281.0,0.37562716]
[1641015787847,0.0173496,47287.0,47281.0,0.37562716]
[1641015788245,7.303e-05,47286.0,47281.0,0.37562716]
[1641015788945,0.05289,47285.0,47281.0,0.37562716]
[1641015789145,7.303e-05,47286.0,47281.0,0.37562716]
[1641015789396,7.303e-05,47286.0,47285.0,0.25518783]
[1641015789696,7.303e-05,47286.0,47281.0,0.37562716]
[1641015790298,0.05296103,47286.0,47281.0,0.37562716]
[1641015790895,0.05296103,47286.0,47283.0,0.25282006]
[1641015791896,0.05296103,47286.0,47284.0,0.4191393]
[1641015797906,0.04796103,47286.0,47284.0,0.4191393]
[1641015805101,0.04796103,47286.0,47284.0,0.41451314]
[1641015805302,0.04796103,47286.0,47284.0,0.4357505]
[1641015805906,0.04796103,47286.0,47285.0,0.27067303]
[1641015806104,0.01735159,47287.0,47284.0,0.4357505]
[1641015806311,0.10577114,47302.0,47284.0,0.4357505]
[1641015806312,0.92538075,47304.0,47303.0,1.30452736]
[1641015806505,0.06709004,47304.0,47303.0,1.07630462]
[1641015806704,0.0001,47314.0,47303.0,1.41520262]
[1641015806906,0.0001,47314.0,47309.0,0.00129277]
[1641015807108,0.0001,47314.0,47312.0,0.30425284]
[1641015807904,0.0001,47314.0,47313.0,0.34012579]
[1641015808170,0.0001,47314.0,47313.0,0.36169579]
[1641015808367,0.00061122,47314.0,47313.0,0.36169579]
[1641015809367,0.00061122,47314.0,47313.0,0.35971204]
[1641015810065,0.00061122,47314.0,47313.0,0.64923952]
[1641015810268,0.00061122,47314.0,47313.0,0.67048471]
[1641015810470,0.00061122,47314.0,47313.0,0.04083144]
[1641015810668,0.00061122,47314.0,47313.0,0.02124519]
[1641015811569,0.00061122,47314.0,47313.0,0.00013129]
[1641015812205,0.02857122,47315.0,47313.0,0.00013129]
[1641015812704,0.3010558,47315.0,47313.0,0.00013129]
[1641015812904,0.3510558,47315.0,47313.0,0.00013129]
[1641015813105,0.26582038,47314.0,47313.0,0.00013129]
[1641015813906,0.31582038,47314.0,47313.0,0.00013129]
[1641015814306,0.41582038,47314.0,47313.0,0.00013129]
[1641015814506,0.51704757,47314.0,47313.0,1.29e-06]
[1641015814709,0.63514095,47314.0,47313.0,1.29e-06]
[1641015815109,0.00558545,47306.0,47304.0,0.01921705]
[1641015815307,0.052878,47305.0,47304.0,0.01921705]
[1641015815566,0.052878,47305.0,47303.0,1.09745261]
[1641015815567,0.102878,47305.0,47303.0,1.09745261]
[1641015816260,0.102878,47305.0,47303.0,1.46728607]
[1641015816757,0.05,47305.0,47303.0,1.46728607]
[1641015816958,0.05558545,47306.0,47303.0,1.46728607]
[1641015817158,0.00558545,47306.0,47303.0,1.42606774]
[1641015817360,0.00558545,47306.0,47305.0,0.25942805]
[1641015817859,0.00558545,47306.0,47305.0,0.25959237]
[1641015818863,0.05845245,47306.0,47305.0,0.25959237]
[1641015819061,0.00558545,47306.0,47305.0,0.25959237]
[1641015821902,0.00558545,47306.0,47305.0,0.59849037]
[1641015822100,0.00558545,47306.0,47305.0,0.25959237]
[1641015824951,0.00558545,47306.0,47305.0,0.59849037]
[1641015825952,0.00558545,47306.0,47305.0,0.25959237]
[1641015826153,0.00558545,47306.0,47305.0,0.59849037]
[1641015826557,0.00558545,47306.0,47305.0,0.25959237]
[1641015827003,0.00558545,47306.0,47305.0,0.27770837]
[1641015827604,0.00558545,47306.0,47305.0,0.25959237]
[1641015828707,0.00558545,47306.0,47305.0,0.59849037]
[1641015828907,8.545e-05,47306.0,47305.0,0.59849037]
[1641015829112,0.00014499,47308.0,47306.0,1.448898]
[1641015829310,0.00014499,47308.0,47307.0,0.34569993]
[1641015829506,0.00014499,47308.0,47307.0,0.64261564]
[1641015829710,0.01401115,47308.0,47307.0,0.6370197]
[1641015830306,0.01401115,47308.0,47307.0,0.65873911]
[1641015830566,1.115e-05,47308.0,47307.0,0.9819512]
[1641015830759,1.115e-05,47308.0,47307.0,0.6219512]
[1641015830958,1.115e-05,47308.0,47307.0,0.3619512]
[1641015831359,1.115e-05,47308.0,47307.0,0.38314687]
[1641015831561,0.00969397,47314.0,47312.0,0.25742204]
[1641015831562,0.00217512,47314.0,47312.0,0.25742204]
[1641015831764,0.00217512,47314.0,47313.0,0.338898]
[1641015832060,0.00217512,47314.0,47313.0,0.98811105]
[1641015832261,0.0001,47316.0,47313.0,0.98811105]
[1641015832462,0.0001,47316.0,47313.0,0.66959205]
[1641015832660,0.0001,47316.0,47313.0,0.94158089]
[1641015832861,0.0001,47316.0,47313.0,0.94152931]
[1641015833060,0.0001,47316.0,47313.0,0.66959205]
[1641015833261,0.0001,47316.0,47313.0,0.94258601]
[1641015834063,0.0001,47316.0,47314.0,0.338898]
[1641015834300,0.0001,47316.0,47313.0,0.94299266]
[1641015834499,0.0001,47316.0,47315.0,0.2775984]
[1641015834699,0.0001,47316.0,47315.0,0.6164964]
[1641015835602,0.0001,47316.0,47315.0,0.63676827]
[1641015836403,0.0001,47316.0,47315.0,0.65556799]
[1641015836603,0.0001,47316.0,47315.0,0.63529612]
[1641015837502,0.0001,47316.0,47315.0,0.65450594]
[1641015837702,0.0001,47316.0,47315.0,0.63570622]
[1641015838556,0.0001,47316.0,47315.0,0.65761375]
[1641015838754,0.0001,47316.0,47315.0,0.63840393]
[1641015839554,0.0001,47316.0,47315.0,0.65926054]
[1641015839755,0.0001,47316.0,47315.0,0.35975461]
[1641015839956,0.0001,47316.0,47315.0,0.4610494]
[1641015840161,0.0001,47316.0,47315.0,0.5110494]
[1641015840357,0.0001,47316.0,47315.0,0.4610494]
[1641015840558,0.0001,47316.0,47315.0,1.60315045]
[1641015840756,0.0001,47316.0,47315.0,1.58229384]
[1641015841157,0.00529553,47325.0,47317.0,1.122]
[1641015841357,0.00529553,47325.0,47321.0,0.052833]
[1641015841559,0.00529553,47325.0,47324.0,0.00122062]
[1641015841802,0.0001,47338.0,47325.0,0.78]
[1641015842005,0.0001,47338.0,47324.0,1.45011862]
[1641015842006,0.0001,47338.0,47334.0,0.00127264]
[1641015842203,0.0001,47338.0,47335.0,0.338898]
[1641015842702,0.00978681,47338.0,47336.0,0.42653624]
[1641015842902,0.00978681,47338.0,47336.0,1.05099992]
[1641015843201,0.00051994,47337.0,47336.0,1.05099992]
[1641015843402,0.00051994,47337.0,47336.0,1.32627007]
[1641015843603,0.00051994,47337.0,47336.0,3.88561335]
[1641015844000,0.0001,47342.0,47339.0,0.00127565]
[1641015844001,6.75e-06,47340.0,47339.0,0.00127565]
[1641015844202,6.75e-06,47340.0,47339.0,0.34017365]
[1641015845002,6.75e-06,47340.0,47339.0,0.64234414]
[1641015845659,0.052912,47355.0,47340.0,1.448898]
[1641015845860,0.052912,47355.0,47345.0,0.28087314]
[1641015846062,0.26782002,47354.0,47345.0,0.27972419]
[1641015846261,0.0002,47346.0,47345.0,0.27972419]
[1641015846664,0.00978643,47352.0,47345.0,0.27972419]
[1641015846861,0.05282,47348.0,47340.0,0.01814531]
[1641015847060,0.00018257,47347.0,47343.0,0.39386297]
[1641015847461,0.00016432,47346.0,47343.0,0.39386297]
[1641015847862,0.07588706,47352.0,47344.0,0.2715711]
[1641015848060,0.05282,47348.0,47344.0,0.2715711]
[1641015849501,0.0001,47349.0,47344.0,0.2715711]
[1641015849703,0.043017,47350.0,47344.0,0.2715711]
[1641015850100,7.303e-05,47349.0,47344.0,0.2715711]
[1641015850700,0.052819,47348.0,47344.0,0.2715711]
[1641015854046,7.303e-05,47349.0,47344.0,0.2715711]
[1641015855644,2.303e-05,47351.0,47345.0,0.6]
[1641015855844,2.303e-05,47351.0,47344.0,0.2715711]
[1641015856044,0.052817,47350.0,47345.0,7.303e-05]
[1641015856443,0.052817,47350.0,47344.0,0.26605191]
[1641015861148,2.303e-05,47351.0,47345.0,0.338898]
[1641015861548,9.129e-05,47350.0,47345.0,0.338898]
[1641015862047,7.303e-05,47349.0,47345.0,0.338898]
[1641015862350,7.303e-05,47349.0,47348.0,0.30962389]
[1641015862748,7.303e-05,47349.0,47345.0,0.01863517]
[1641015864486,7.303e-05,47349.0,47344.0,0.26605191]
[1641015864687,0.05289003,47349.0,47344.0,0.26605191]
[1641015866790,0.05289003,47349.0,47345.0,0.338898]
[1641015866990,0.00535254,47345.0,47344.0,0.26605191]
[1641015867190,0.00535254,47345.0,47344.0,0.60494991]
[1641015868261,0.00535254,47345.0,47344.0,0.88267828]
[1641015868759,0.00535254,47345.0,47344.0,0.9043227]
[1641015869159,0.00035254,47345.0,47344.0,0.9043227]
[1641015869559,0.00035254,47345.0,47344.0,0.62659433]
[1641015869758,0.00035254,47345.0,47344.0,0.64616011]
[1641015869959,0.00035254,47345.0,47344.0,0.62451569]
[1641015870658,0.00035254,47345.0,47344.0,0.64524656]
[1641015870860,0.00035254,47345.0,47344.0,0.62568078]
[1641015871897,0.00035254,47345.0,47344.0,0.64516386]
[1641015872097,0.00035254,47345.0,47344.0,0.60494991]
[1641015872700,0.00035254,47345.0,47344.0,0.6248696]
[1641015873802,0.00035254,47345.0,47344.0,0.64491914]
[1641015874002,0.00035254,47345.0,47344.0,0.62499945]
[1641015875403,0.00035254,47345.0,47344.0,0.64554629]
[1641015875656,0.00035254,47345.0,47344.0,0.62549675]
[1641015875857,0.00035254,47345.0,47344.0,0.64724173]
[1641015876062,0.00035254,47345.0,47344.0,0.62669489]
[1641015876858,0.00035254,47345.0,47344.0,0.64647401]
[1641015877057,0.00035254,47345.0,47344.0,0.62472903]
[1641015877857,0.00035254,47345.0,47344.0,0.6466121]
[1641015878062,0.00035254,47345.0,47344.0,0.62683298]
[1641015879314,0.00035254,47345.0,47344.0,0.64868221]
[1641015879512,0.00035254,47345.0,47344.0,0.62153214]
[1641015879711,0.00035254,47345.0,47344.0,0.64099095]
[1641015879912,0.00035254,47345.0,47344.0,0.61914172]
[1641015880715,0.00035254,47345.0,47344.0,0.63817443]
[1641015881116,0.00035254,47345.0,47344.0,0.59968291]
[1641015881421,0.00035254,47345.0,47342.0,0.00120888]
[1641015881818,0.00035254,47345.0,47339.0,0.00968643]
[1641015881819,0.00035254,47345.0,47344.0,0.02063083]
[1641015882819,0.05318254,47345.0,47344.0,0.02063083]
[1641015883045,0.05318254,47345.0,47339.0,0.00968643]
[1641015883442,0.05318254,47345.0,47340.0,9.129e-05]
[1641015884642,0.05318254,47345.0,47337.0,0.00014606]
[1641015885043,0.00124456,47343.0,47337.0,0.00014606]
[1641015885245,0.34737124,47340.0,47337.0,0.00014606]
[1641015885445,1.05,47338.0,47337.0,0.00014606]
[1641015885645,1.463284,47338.0,47337.0,0.00014606]